[Event "Titled Tuesday Blitz December 27 Late 2022"]
[White "Adewumi, Tanitoluwa"]
[Black "Prieto Aranguren, Alain"]
[WhiteFideId "30966396"]
[BlackFideId "2268906"]
[WhiteElo "2283"]
[BlackElo "2258"]
[Result "0-1"]
[Round "02"]
[TimeControl "180+2"]
[Date "2022.12.27"]
[WhiteClock "0:00:06"]
[BlackClock "0:00:05"]

1. e4 {[%clk 0:02:18]}  e5 {[%clk 0:02:58]} 2. Nf3 {[%clk 0:02:18]}  d5 {[%clk 0:02:58]} 3. Nxe5 {[%clk 0:02:11]}  dxe4 {[%clk 0:02:52]} 4. d4 {[%clk 0:02:08]}  Nf6 {[%clk 0:02:50]} 5. Bc4 {[%clk 0:02:07]}  Be6 {[%clk 0:02:45]} 6. Bxe6 {[%clk 0:02:04]}  fxe6 {[%clk 0:02:44]} 7. O-O {[%clk 0:02:04]}  Bd6 {[%clk 0:02:44]} 8. Nc3 {[%clk 0:02:02]}  O-O {[%clk 0:02:43]} 9. Qe2 {[%clk 0:02:02]}  Nc6 {[%clk 0:02:39]} 10. Nxc6 {[%clk 0:02:02]}  bxc6 {[%clk 0:02:39]} 11. Nxe4 {[%clk 0:02:02]}  Nxe4 {[%clk 0:02:37]} 12. Qxe4 {[%clk 0:02:03]}  Qf6 {[%clk 0:02:36]} 13. g3 {[%clk 0:02:02]}  Rab8 {[%clk 0:02:34]} 14. Re1 {[%clk 0:02:01]}  Qxf2+ {[%clk 0:02:29]} 15. Kh1 {[%clk 0:02:00]}  Rf6 {[%clk 0:02:04]} 16. Bg5 {[%clk 0:01:43]}  Qf3+ {[%clk 0:01:48]} 17. Qxf3 {[%clk 0:01:42]}  Rxf3 {[%clk 0:01:47]} 18. b3 {[%clk 0:01:42]}  Rf2 {[%clk 0:01:24]} 19. Rac1 {[%clk 0:01:40]}  Kf7 {[%clk 0:01:16]} 20. Be3 {[%clk 0:01:34]}  Rf5 {[%clk 0:01:16]} 21. Kg2 {[%clk 0:01:23]}  h5 {[%clk 0:01:05]} 22. h3 {[%clk 0:00:41]}  Kg6 {[%clk 0:01:02]} 23. Bf2 {[%clk 0:00:30]}  Rf6 {[%clk 0:00:52]} 24. Rcd1 {[%clk 0:00:26]}  Rbf8 {[%clk 0:00:51]} 25. Re2 {[%clk 0:00:24]}  Kh7 {[%clk 0:00:45]} 26. Rde1 {[%clk 0:00:18]}  Rf3 {[%clk 0:00:44]} 27. h4 {[%clk 0:00:12]}  Bb4 {[%clk 0:00:41]} 28. Rd1 {[%clk 0:00:11]}  R8f6 {[%clk 0:00:39]} 29. Rd3 {[%clk 0:00:05]}  Rxd3 {[%clk 0:00:37]} 30. cxd3 {[%clk 0:00:06]}  Bd6 {[%clk 0:00:37]} 31. Rc2 {[%clk 0:00:05]}  Rf5 {[%clk 0:00:28]} 32. Rxc6 {[%clk 0:00:05]}  Ra5 {[%clk 0:00:27]} 33. a4 {[%clk 0:00:05]}  g6 {[%clk 0:00:22]} 34. Rc4 {[%clk 0:00:05]}  Kg7 {[%clk 0:00:21]} 35. Rc6 {[%clk 0:00:05]}  Kf7 {[%clk 0:00:21]} 36. Kf3 {[%clk 0:00:05]}  Ke7 {[%clk 0:00:21]} 37. Be1 {[%clk 0:00:05]}  Rd5 {[%clk 0:00:19]} 38. Bf2 {[%clk 0:00:04]}  a5 {[%clk 0:00:17]} 39. Ra6 {[%clk 0:00:03]}  Kd7 {[%clk 0:00:17]} 40. Ke3 {[%clk 0:00:03]}  Kc8 {[%clk 0:00:14]} 41. Ke2 {[%clk 0:00:03]}  Kb7 {[%clk 0:00:13]} 42. Rxd6 {[%clk 0:00:04]}  cxd6 {[%clk 0:00:12]} 43. Ke3 {[%clk 0:00:04]}  Rf5 {[%clk 0:00:11]} 44. Ke2 {[%clk 0:00:04]}  Kc6 {[%clk 0:00:12]} 45. Be1 {[%clk 0:00:05]}  Kd7 {[%clk 0:00:10]} 46. Bc3 {[%clk 0:00:05]}  Rd5 {[%clk 0:00:10]} 47. Ke3 {[%clk 0:00:05]}  Ke7 {[%clk 0:00:10]} 48. Bd2 {[%clk 0:00:05]}  Kf6 {[%clk 0:00:10]} 49. Ke4 {[%clk 0:00:05]}  Kf7 {[%clk 0:00:07]} 50. Bf4 {[%clk 0:00:05]}  Ke7 {[%clk 0:00:07]} 51. Bg5+ {[%clk 0:00:06]}  Kd7 {[%clk 0:00:07]} 52. Bd2 {[%clk 0:00:06]}  Rf5 {[%clk 0:00:08]} 53. Bf4 {[%clk 0:00:06]}  Kc6 {[%clk 0:00:08]} 54. Ke3 {[%clk 0:00:05]}  Kd5 {[%clk 0:00:08]} 55. Bg5 {[%clk 0:00:04]}  Rf1 {[%clk 0:00:08]} 56. Bd8 {[%clk 0:00:05]}  Rb1 {[%clk 0:00:08]} 57. Bxa5 {[%clk 0:00:05]}  Rxb3 {[%clk 0:00:08]} 58. Bc7 {[%clk 0:00:03]}  Ra3 {[%clk 0:00:08]} 59. a5 {[%clk 0:00:04]}  Ra4 {[%clk 0:00:08]} 60. Bb6 {[%clk 0:00:04]}  Rb4 {[%clk 0:00:07]} 61. Bc7 {[%clk 0:00:04]}  Rxd4 {[%clk 0:00:07]} 62. Bxd6 {[%clk 0:00:03]}  Ra4 {[%clk 0:00:07]} 63. Bc7 {[%clk 0:00:03]}  e5 {[%clk 0:00:07]} 64. Bb6 {[%clk 0:00:04]}  Ra3 {[%clk 0:00:07]} 65. Ke2 {[%clk 0:00:04]}  Ke6 {[%clk 0:00:07]} 66. Ke3 {[%clk 0:00:04]}  Kf5 {[%clk 0:00:07]} 67. Bc7 {[%clk 0:00:04]}  e4 {[%clk 0:00:07]} 68. Ke2 {[%clk 0:00:03]}  exd3+ {[%clk 0:00:07]} 69. Kd2 {[%clk 0:00:04]}  Kg4 {[%clk 0:00:07]} 70. Kd1 {[%clk 0:00:04]}  Ra2 {[%clk 0:00:07]} 71. Ke1 {[%clk 0:00:04]}  Kf3 {[%clk 0:00:07]} 72. Kd1 {[%clk 0:00:04]}  Ke3 {[%clk 0:00:07]} 73. Bb6+ {[%clk 0:00:05]}  Ke4 {[%clk 0:00:07]} 74. Ke1 {[%clk 0:00:06]}  Re2+ {[%clk 0:00:07]} 75. Kd1 {[%clk 0:00:06]}  Ra2 {[%clk 0:00:06]} 76. Ke1 {[%clk 0:00:06]}  Kf3 {[%clk 0:00:06]} 77. Kd1 {[%clk 0:00:06]}  Kxg3 {[%clk 0:00:05]} 0-1


[Site "https://www.chess.com"]

[Event "Titled Tuesday Blitz December 27 Late 2022"]
[White "Ai, Evan"]
[Black "Kozin, Yuri"]
[WhiteFideId "2094770"]
[BlackFideId "4129920"]
[WhiteElo "2055"]
[BlackElo "2251"]
[Result "0-1"]
[Round "02"]
[TimeControl "180+2"]
[Date "2022.12.27"]
[WhiteClock "0:00:18"]
[BlackClock "0:01:09"]

1. e4 {[%clk 0:03:00]}  c5 {[%clk 0:03:00]} 2. Nf3 {[%clk 0:03:00]}  e6 {[%clk 0:03:00]} 3. d4 {[%clk 0:03:00]}  cxd4 {[%clk 0:03:00]} 4. Nxd4 {[%clk 0:03:01]}  a6 {[%clk 0:03:01]} 5. Bd3 {[%clk 0:03:01]}  Qc7 {[%clk 0:02:58]} 6. c4 {[%clk 0:03:01]}  Nc6 {[%clk 0:02:57]} 7. Nxc6 {[%clk 0:03:00]}  dxc6 {[%clk 0:02:58]} 8. Nc3 {[%clk 0:03:00]}  e5 {[%clk 0:02:59]} 9. Qe2 {[%clk 0:02:59]}  Nf6 {[%clk 0:02:59]} 10. h3 {[%clk 0:02:59]}  Be7 {[%clk 0:02:58]} 11. Be3 {[%clk 0:02:58]}  O-O {[%clk 0:02:58]} 12. g4 {[%clk 0:02:59]}  Be6 {[%clk 0:02:57]} 13. g5 {[%clk 0:02:54]}  Nd7 {[%clk 0:02:58]} 14. h4 {[%clk 0:02:53]}  Bc5 {[%clk 0:02:58]} 15. h5 {[%clk 0:02:50]}  Bxe3 {[%clk 0:02:58]} 16. Qxe3 {[%clk 0:02:51]}  b5 {[%clk 0:02:47]} 17. cxb5 {[%clk 0:02:44]}  axb5 {[%clk 0:02:47]} 18. Rc1 {[%clk 0:02:41]}  Qa5 {[%clk 0:02:35]} 19. a3 {[%clk 0:02:36]}  b4 {[%clk 0:02:34]} 20. axb4 {[%clk 0:02:37]}  Qxb4 {[%clk 0:02:35]} 21. Qd2 {[%clk 0:02:27]}  Nc5 {[%clk 0:02:31]} 22. Bc2 {[%clk 0:02:08]}  Rfd8 {[%clk 0:02:26]} 23. Qe3 {[%clk 0:02:04]}  Bc4 {[%clk 0:01:56]} 24. Rb1 {[%clk 0:01:41]}  Nd3+ {[%clk 0:01:37]} 25. Bxd3 {[%clk 0:01:33]}  Rxd3 {[%clk 0:01:38]} 26. Qc1 {[%clk 0:01:21]}  Rd4 {[%clk 0:01:32]} 27. Rh3 {[%clk 0:01:18]}  Rxe4+ {[%clk 0:01:25]} 28. Re3 {[%clk 0:01:16]}  Rh4 {[%clk 0:01:20]} 29. Qc2 {[%clk 0:00:28]}  Rh1+ {[%clk 0:01:19]} 30. Kd2 {[%clk 0:00:28]}  Rd8+ {[%clk 0:01:18]} 31. Rd3 {[%clk 0:00:22]}  Rxd3+ {[%clk 0:01:12]} 32. Qxd3 {[%clk 0:00:21]}  Bxd3 {[%clk 0:01:12]} 33. Rxh1 {[%clk 0:00:21]}  e4 {[%clk 0:01:09]} 34. Kc1 {[%clk 0:00:19]}  Qb3 {[%clk 0:01:09]} 35. Rd1 {[%clk 0:00:18]}  Qc2# {[%clk 0:01:09]} 0-1


[Site "https://www.chess.com"]

[Event "Titled Tuesday Blitz December 27 Late 2022"]
[White "Antonios, Johnny"]
[Black "Gubajdullin, Alexei"]
[WhiteFideId "5300843"]
[BlackFideId "4141202"]
[WhiteElo "2269"]
[BlackElo "2285"]
[Result "0-1"]
[Round "02"]
[TimeControl "180+2"]
[Date "2022.12.27"]
[WhiteClock "0:01:45"]
[BlackClock "0:02:34"]

1. e4 {[%clk 0:03:00]}  g6 {[%clk 0:02:59]} 2. d4 {[%clk 0:03:00]}  Bg7 {[%clk 0:02:59]} 3. Nf3 {[%clk 0:03:01]}  d6 {[%clk 0:03:00]} 4. Nc3 {[%clk 0:03:01]}  Nf6 {[%clk 0:02:59]} 5. Be2 {[%clk 0:03:01]}  O-O {[%clk 0:03:00]} 6. O-O {[%clk 0:03:01]}  Nc6 {[%clk 0:03:00]} 7. d5 {[%clk 0:03:01]}  Nb8 {[%clk 0:03:00]} 8. h3 {[%clk 0:03:02]}  c6 {[%clk 0:03:00]} 9. a4 {[%clk 0:03:02]}  a6 {[%clk 0:03:00]} 10. Be3 {[%clk 0:02:58]}  a5 {[%clk 0:03:00]} 11. Qd2 {[%clk 0:02:53]}  Na6 {[%clk 0:02:59]} 12. Bh6 {[%clk 0:02:47]}  Nb4 {[%clk 0:02:59]} 13. Bxg7 {[%clk 0:02:48]}  Kxg7 {[%clk 0:02:58]} 14. Rfd1 {[%clk 0:02:42]}  Qb6 {[%clk 0:02:58]} 15. dxc6 {[%clk 0:02:38]}  bxc6 {[%clk 0:02:58]} 16. e5 {[%clk 0:02:38]}  dxe5 {[%clk 0:02:55]} 17. Nxe5 {[%clk 0:02:39]}  Be6 {[%clk 0:02:54]} 18. Nc4 {[%clk 0:02:39]}  Qc5 {[%clk 0:02:54]} 19. b3 {[%clk 0:02:39]}  Rfd8 {[%clk 0:02:53]} 20. Qc1 {[%clk 0:02:39]}  Bf5 {[%clk 0:02:46]} 21. Bf3 {[%clk 0:01:58]}  Nxc2 {[%clk 0:02:38]} 22. Ra2 {[%clk 0:01:58]}  Nd4 {[%clk 0:02:36]} 23. Rad2 {[%clk 0:01:44]}  Nxb3 {[%clk 0:02:35]} 24. Ne4 {[%clk 0:01:45]}  Bxe4 {[%clk 0:02:34]} 0-1


[Site "https://www.chess.com"]

[Event "Titled Tuesday Blitz December 27 Late 2022"]
[White "Averjanov, Alexey"]
[Black "Freile Martin, Javier"]
[WhiteFideId "14109867"]
[BlackFideId "3600165"]
[WhiteElo "2399"]
[BlackElo "2329"]
[Result "1-0"]
[Round "02"]
[TimeControl "180+2"]
[Date "2022.12.27"]
[WhiteClock "0:02:15"]
[BlackClock "0:00:10"]

1. d4 {[%clk 0:03:00]}  Nf6 {[%clk 0:02:58]} 2. c4 {[%clk 0:02:58]}  g6 {[%clk 0:02:56]} 3. Nc3 {[%clk 0:02:58]}  Bg7 {[%clk 0:02:56]} 4. e4 {[%clk 0:02:58]}  d6 {[%clk 0:02:56]} 5. Be2 {[%clk 0:02:57]}  O-O {[%clk 0:02:56]} 6. Nf3 {[%clk 0:02:57]}  Na6 {[%clk 0:02:55]} 7. O-O {[%clk 0:02:56]}  e5 {[%clk 0:02:55]} 8. Qc2 {[%clk 0:02:55]}  exd4 {[%clk 0:02:52]} 9. Nxd4 {[%clk 0:02:54]}  Re8 {[%clk 0:02:51]} 10. Be3 {[%clk 0:02:47]}  Nc5 {[%clk 0:02:45]} 11. f3 {[%clk 0:02:47]}  a5 {[%clk 0:02:38]} 12. Rfd1 {[%clk 0:02:46]}  Nh5 {[%clk 0:02:32]} 13. Bf2 {[%clk 0:02:44]}  Nf4 {[%clk 0:02:29]} 14. Bf1 {[%clk 0:02:43]}  c6 {[%clk 0:02:20]} 15. Kh1 {[%clk 0:02:42]}  Qc7 {[%clk 0:02:09]} 16. Rd2 {[%clk 0:02:41]}  a4 {[%clk 0:02:06]} 17. Rad1 {[%clk 0:02:40]}  a3 {[%clk 0:02:02]} 18. b3 {[%clk 0:02:38]}  Be5 {[%clk 0:01:57]} 19. Nde2 {[%clk 0:02:37]}  h5 {[%clk 0:01:43]} 20. Be3 {[%clk 0:02:33]}  Nce6 {[%clk 0:01:42]} 21. Nxf4 {[%clk 0:02:32]}  Nxf4 {[%clk 0:01:41]} 22. Ne2 {[%clk 0:02:32]}  Nxe2 {[%clk 0:01:36]} 23. Bxe2 {[%clk 0:02:33]}  h4 {[%clk 0:01:02]} 24. f4 {[%clk 0:02:31]}  Bb2 {[%clk 0:01:00]} 25. Rxd6 {[%clk 0:02:29]}  h3 {[%clk 0:00:48]} 26. g3 {[%clk 0:02:29]}  Bf5 {[%clk 0:00:44]} 27. exf5 {[%clk 0:02:23]}  Rxe3 {[%clk 0:00:42]} 28. fxg6 {[%clk 0:02:23]}  Qe7 {[%clk 0:00:34]} 29. gxf7+ {[%clk 0:02:21]}  Kf8 {[%clk 0:00:28]} 30. Qg6 {[%clk 0:02:18]}  Qe4+ {[%clk 0:00:19]} 31. Qxe4 {[%clk 0:02:17]}  Rxe4 {[%clk 0:00:19]} 32. Bh5 {[%clk 0:02:17]}  Re3 {[%clk 0:00:14]} 33. Rd8+ {[%clk 0:02:14]}  Rxd8 {[%clk 0:00:12]} 34. Rxd8+ {[%clk 0:02:15]}  Ke7 {[%clk 0:00:11]} 35. f8=Q+ {[%clk 0:02:15]}  Ke6 {[%clk 0:00:10]} 36. Rd6# {[%clk 0:02:15]} 1-0


[Site "https://www.chess.com"]

[Event "Titled Tuesday Blitz December 27 Late 2022"]
[White "Bas Mas, Jose Joaquin"]
[Black "Popilski, Gil"]
[WhiteFideId "22219064"]
[BlackFideId "2809060"]
[WhiteElo "2197"]
[BlackElo "2443"]
[Result "0-1"]
[Round "02"]
[TimeControl "180+2"]
[Date "2022.12.27"]
[WhiteClock "0:00:10"]
[BlackClock "0:01:21"]

1. e4 {[%clk 0:02:58]}  e5 {[%clk 0:02:59]} 2. Nf3 {[%clk 0:02:04]}  Nc6 {[%clk 0:02:56]} 3. Bb5 {[%clk 0:02:03]}  Nf6 {[%clk 0:02:47]} 4. Bxc6 {[%clk 0:02:01]}  dxc6 {[%clk 0:02:47]} 5. d3 {[%clk 0:02:01]}  Nd7 {[%clk 0:02:44]} 6. O-O {[%clk 0:02:01]}  Bd6 {[%clk 0:02:43]} 7. b3 {[%clk 0:02:01]}  O-O {[%clk 0:02:40]} 8. Nbd2 {[%clk 0:02:01]}  Re8 {[%clk 0:02:40]} 9. Bb2 {[%clk 0:02:01]}  Nf8 {[%clk 0:02:39]} 10. h3 {[%clk 0:01:59]}  Ng6 {[%clk 0:02:39]} 11. a4 {[%clk 0:01:54]}  a5 {[%clk 0:02:38]} 12. Nc4 {[%clk 0:01:54]}  f6 {[%clk 0:02:35]} 13. Bc1 {[%clk 0:01:46]}  Be6 {[%clk 0:02:34]} 14. Bd2 {[%clk 0:01:45]}  b6 {[%clk 0:02:31]} 15. Qe2 {[%clk 0:01:42]}  Bf8 {[%clk 0:02:26]} 16. Kh1 {[%clk 0:01:37]}  Qd7 {[%clk 0:02:18]} 17. Nh2 {[%clk 0:01:29]}  f5 {[%clk 0:02:11]} 18. exf5 {[%clk 0:01:27]}  Bxf5 {[%clk 0:02:12]} 19. g4 {[%clk 0:01:27]}  Qd5+ {[%clk 0:02:11]} 20. Qf3 {[%clk 0:01:18]}  Be6 {[%clk 0:02:10]} 21. Qxd5 {[%clk 0:01:11]}  cxd5 {[%clk 0:02:08]} 22. Ne3 {[%clk 0:01:08]}  Nf4 {[%clk 0:02:06]} 23. Rae1 {[%clk 0:00:53]}  Nxh3 {[%clk 0:02:04]} 24. Ng2 {[%clk 0:00:53]}  Bd6 {[%clk 0:02:03]} 25. f3 {[%clk 0:00:52]}  Re7 {[%clk 0:01:59]} 26. Re2 {[%clk 0:00:45]}  Rf8 {[%clk 0:01:58]} 27. Rfe1 {[%clk 0:00:44]}  Bc8 {[%clk 0:01:55]} 28. c4 {[%clk 0:00:33]}  Bb7 {[%clk 0:01:53]} 29. d4 {[%clk 0:00:28]}  dxc4 {[%clk 0:01:52]} 30. dxe5 {[%clk 0:00:25]}  Bc5 {[%clk 0:01:44]} 31. Be3 {[%clk 0:00:24]}  Rxe5 {[%clk 0:01:36]} 32. Bxc5 {[%clk 0:00:21]}  Rxc5 {[%clk 0:01:37]} 33. Nh4 {[%clk 0:00:19]}  cxb3 {[%clk 0:01:34]} 34. Nf5 {[%clk 0:00:18]}  Nf4 {[%clk 0:01:30]} 35. Re7 {[%clk 0:00:17]}  Rfxf5 {[%clk 0:01:25]} 36. gxf5 {[%clk 0:00:16]}  Rxf5 {[%clk 0:01:26]} 37. Rxc7 {[%clk 0:00:16]}  Bd5 {[%clk 0:01:25]} 38. Re8+ {[%clk 0:00:11]}  Rf8 {[%clk 0:01:24]} 39. Ree7 {[%clk 0:00:12]}  Ne6 {[%clk 0:01:22]} 40. Rcd7 {[%clk 0:00:10]}  b2 {[%clk 0:01:21]} 0-1


[Site "https://www.chess.com"]

[Event "Titled Tuesday Blitz December 27 Late 2022"]
[White "Bazeev, German"]
[Black "Fernandez Garcia, Gumersindo"]
[WhiteFideId "24119350"]
[BlackFideId "24516740"]
[WhiteElo "2369"]
[BlackElo "2160"]
[Result "1-0"]
[Round "02"]
[TimeControl "180+2"]
[Date "2022.12.27"]
[WhiteClock "0:01:27"]
[BlackClock "0:00:18"]

1. c4 {[%clk 0:03:00]}  Nf6 {[%clk 0:02:56]} 2. Nc3 {[%clk 0:03:00]}  g6 {[%clk 0:02:57]} 3. g3 {[%clk 0:03:00]}  Bg7 {[%clk 0:02:57]} 4. Bg2 {[%clk 0:03:01]}  O-O {[%clk 0:02:57]} 5. d3 {[%clk 0:03:01]}  d6 {[%clk 0:02:57]} 6. e4 {[%clk 0:03:01]}  c5 {[%clk 0:02:51]} 7. Nge2 {[%clk 0:03:02]}  a6 {[%clk 0:02:49]} 8. O-O {[%clk 0:03:01]}  Nc6 {[%clk 0:02:48]} 9. h3 {[%clk 0:03:01]}  Rb8 {[%clk 0:02:47]} 10. Be3 {[%clk 0:02:58]}  b5 {[%clk 0:02:45]} 11. b3 {[%clk 0:02:57]}  Nd7 {[%clk 0:02:21]} 12. Rc1 {[%clk 0:02:51]}  e5 {[%clk 0:02:01]} 13. Qd2 {[%clk 0:02:50]}  bxc4 {[%clk 0:01:45]} 14. dxc4 {[%clk 0:02:41]}  Nd4 {[%clk 0:01:45]} 15. f4 {[%clk 0:02:35]}  f5 {[%clk 0:01:21]} 16. exf5 {[%clk 0:02:33]}  Nxf5 {[%clk 0:01:15]} 17. Bf2 {[%clk 0:02:32]}  Kh8 {[%clk 0:01:14]} 18. Nd5 {[%clk 0:02:30]}  Nf6 {[%clk 0:01:11]} 19. Nxf6 {[%clk 0:02:26]}  Qxf6 {[%clk 0:01:10]} 20. Rce1 {[%clk 0:02:18]}  Nd4 {[%clk 0:01:09]} 21. fxe5 {[%clk 0:02:11]}  Nf3+ {[%clk 0:00:48]} 22. Bxf3 {[%clk 0:02:09]}  Qxf3 {[%clk 0:00:49]} 23. Be3 {[%clk 0:02:10]}  Qe4 {[%clk 0:00:33]} 24. Rxf8+ {[%clk 0:02:06]}  Bxf8 {[%clk 0:00:32]} 25. Nc3 {[%clk 0:02:02]}  Qxe5 {[%clk 0:00:24]} 26. Bf4 {[%clk 0:01:51]}  Qg7 {[%clk 0:00:24]} 27. Bxd6 {[%clk 0:01:40]}  Bxd6 {[%clk 0:00:22]} 28. Qxd6 {[%clk 0:01:40]}  Qd4+ {[%clk 0:00:18]} 29. Qxd4+ {[%clk 0:01:39]}  cxd4 {[%clk 0:00:19]} 30. Nd5 {[%clk 0:01:40]}  Bxh3 {[%clk 0:00:19]} 31. Rd1 {[%clk 0:01:31]}  Rd8 {[%clk 0:00:17]} 32. Rxd4 {[%clk 0:01:30]}  Be6 {[%clk 0:00:18]} 33. Kf2 {[%clk 0:01:30]}  Kg7 {[%clk 0:00:17]} 34. Nf4 {[%clk 0:01:27]}  h5 {[%clk 0:00:18]} 35. Nxe6+ {[%clk 0:01:27]} 1-0


[Site "https://www.chess.com"]

[Event "Titled Tuesday Blitz December 27 Late 2022"]
[White "Beerdsen, Thomas"]
[Black "Wu, Brandon"]
[WhiteFideId "1030108"]
[BlackFideId "30909228"]
[WhiteElo "2507"]
[BlackElo "2123"]
[Result "1-0"]
[Round "02"]
[TimeControl "180+2"]
[Date "2022.12.27"]
[WhiteClock "0:02:14"]
[BlackClock "0:01:00"]

1. e4 {[%clk 0:03:00]}  c6 {[%clk 0:02:59]} 2. Nc3 {[%clk 0:02:59]}  d5 {[%clk 0:02:59]} 3. Qe2 {[%clk 0:03:00]}  d4 {[%clk 0:02:52]} 4. Nd1 {[%clk 0:03:00]}  e5 {[%clk 0:02:50]} 5. d3 {[%clk 0:03:01]}  Bd6 {[%clk 0:02:48]} 6. g3 {[%clk 0:03:01]}  h5 {[%clk 0:02:45]} 7. f4 {[%clk 0:03:00]}  h4 {[%clk 0:02:43]} 8. Bg2 {[%clk 0:02:53]}  Qf6 {[%clk 0:02:32]} 9. Nf3 {[%clk 0:02:46]}  Bg4 {[%clk 0:02:32]} 10. Nf2 {[%clk 0:02:41]}  Bxf3 {[%clk 0:02:24]} 11. Qxf3 {[%clk 0:02:41]}  Nh6 {[%clk 0:02:11]} 12. Bd2 {[%clk 0:02:35]}  Nd7 {[%clk 0:02:03]} 13. O-O-O {[%clk 0:02:35]}  O-O-O {[%clk 0:01:57]} 14. Kb1 {[%clk 0:02:35]}  g6 {[%clk 0:01:45]} 15. Rdf1 {[%clk 0:02:31]}  Qe7 {[%clk 0:01:43]} 16. f5 {[%clk 0:02:29]}  gxf5 {[%clk 0:01:27]} 17. exf5 {[%clk 0:02:30]}  Bb4 {[%clk 0:01:18]} 18. f6 {[%clk 0:02:24]}  Qc5 {[%clk 0:01:17]} 19. Ne4 {[%clk 0:02:24]}  Qa5 {[%clk 0:01:17]} 20. Nd6+ {[%clk 0:02:20]}  Kb8 {[%clk 0:01:17]} 21. Nxb7 {[%clk 0:02:20]}  Qb6 {[%clk 0:01:10]} 22. Nxd8 {[%clk 0:02:19]}  Rxd8 {[%clk 0:01:11]} 23. Bxb4 {[%clk 0:02:18]}  Qxb4 {[%clk 0:01:11]} 24. Qxc6 {[%clk 0:02:19]}  Nc5 {[%clk 0:01:09]} 25. a3 {[%clk 0:02:15]}  Qd2 {[%clk 0:01:05]} 26. Qxc5 {[%clk 0:02:14]}  Qxg2 {[%clk 0:01:05]} 27. Qxe5+ {[%clk 0:02:14]}  Ka8 {[%clk 0:01:04]} 28. Qe4+ {[%clk 0:02:15]}  Qxe4 {[%clk 0:01:04]} 29. dxe4 {[%clk 0:02:16]}  h3 {[%clk 0:01:04]} 30. e5 {[%clk 0:02:16]}  Ng4 {[%clk 0:01:03]} 31. Re1 {[%clk 0:02:15]}  Re8 {[%clk 0:01:03]} 32. Re4 {[%clk 0:02:15]}  Nxf6 {[%clk 0:01:03]} 33. Rxd4 {[%clk 0:02:14]}  Rxe5 {[%clk 0:01:03]} 34. Rf1 {[%clk 0:02:14]}  Nd5 {[%clk 0:01:00]} 35. Rxf7 {[%clk 0:02:14]} 1-0


[Site "https://www.chess.com"]

[Event "Titled Tuesday Blitz December 27 Late 2022"]
[White "Boros, Denes"]
[Black "Janaszak, Dawid"]
[WhiteFideId "722340"]
[BlackFideId "1119206"]
[WhiteElo "2406"]
[BlackElo "2316"]
[Result "1/2-1/2"]
[Round "02"]
[TimeControl "180+2"]
[Date "2022.12.27"]
[WhiteClock "0:00:22"]
[BlackClock "0:00:16"]

1. e4 {[%clk 0:03:00]}  c5 {[%clk 0:02:59]} 2. Nf3 {[%clk 0:03:00]}  e6 {[%clk 0:03:00]} 3. e5 {[%clk 0:03:00]}  d6 {[%clk 0:02:49]} 4. Na3 {[%clk 0:02:58]}  Nc6 {[%clk 0:02:48]} 5. exd6 {[%clk 0:02:58]}  Bxd6 {[%clk 0:02:49]} 6. Nc4 {[%clk 0:02:58]}  Bc7 {[%clk 0:02:47]} 7. g3 {[%clk 0:02:58]}  Nf6 {[%clk 0:02:47]} 8. Bg2 {[%clk 0:02:58]}  O-O {[%clk 0:02:47]} 9. O-O {[%clk 0:02:58]}  b6 {[%clk 0:02:37]} 10. Nfe5 {[%clk 0:02:42]}  Nxe5 {[%clk 0:02:28]} 11. Nxe5 {[%clk 0:02:42]}  Bxe5 {[%clk 0:02:26]} 12. Bxa8 {[%clk 0:02:42]}  Ba6 {[%clk 0:02:24]} 13. Bf3 {[%clk 0:02:36]}  Bxf1 {[%clk 0:02:22]} 14. Qxf1 {[%clk 0:02:34]}  Nd5 {[%clk 0:02:14]} 15. Qe2 {[%clk 0:02:26]}  Qf6 {[%clk 0:02:10]} 16. c3 {[%clk 0:02:27]}  Rd8 {[%clk 0:02:05]} 17. a4 {[%clk 0:02:26]}  h6 {[%clk 0:02:00]} 18. a5 {[%clk 0:02:26]}  b5 {[%clk 0:01:44]} 19. a6 {[%clk 0:01:57]}  c4 {[%clk 0:01:37]} 20. Ra5 {[%clk 0:01:56]}  Nc7 {[%clk 0:01:18]} 21. Be4 {[%clk 0:01:56]}  Bd6 {[%clk 0:01:12]} 22. Kg2 {[%clk 0:01:51]}  Bc5 {[%clk 0:01:11]} 23. Ra1 {[%clk 0:01:30]}  Bb6 {[%clk 0:01:09]} 24. d4 {[%clk 0:01:12]}  cxd3 {[%clk 0:01:09]} 25. Bxd3 {[%clk 0:01:13]}  Qxf2+ {[%clk 0:01:01]} 26. Qxf2 {[%clk 0:01:13]}  Bxf2 {[%clk 0:01:02]} 27. Be4 {[%clk 0:01:05]}  Bb6 {[%clk 0:00:57]} 28. Bf4 {[%clk 0:01:05]}  Nd5 {[%clk 0:00:56]} 29. Kf3 {[%clk 0:01:03]}  Nxf4 {[%clk 0:00:54]} 30. gxf4 {[%clk 0:01:03]}  Rd2 {[%clk 0:00:48]} 31. b3 {[%clk 0:00:59]}  f5 {[%clk 0:00:44]} 32. Bc6 {[%clk 0:00:56]}  Rd3+ {[%clk 0:00:44]} 33. Kg2 {[%clk 0:00:57]}  Rxc3 {[%clk 0:00:44]} 34. Bxb5 {[%clk 0:00:57]}  Rxb3 {[%clk 0:00:41]} 35. Bc4 {[%clk 0:00:58]}  Rb2+ {[%clk 0:00:41]} 36. Kg3 {[%clk 0:00:56]}  g6 {[%clk 0:00:32]} 37. Rd1 {[%clk 0:00:53]}  Kf7 {[%clk 0:00:26]} 38. Rd6 {[%clk 0:00:51]}  Rc2 {[%clk 0:00:21]} 39. Bb5 {[%clk 0:00:39]}  Rc3+ {[%clk 0:00:20]} 40. Kg2 {[%clk 0:00:39]}  Re3 {[%clk 0:00:19]} 41. h4 {[%clk 0:00:35]}  Ke7 {[%clk 0:00:17]} 42. Rd7+ {[%clk 0:00:32]}  Kf6 {[%clk 0:00:16]} 43. Rh7 {[%clk 0:00:30]}  h5 {[%clk 0:00:15]} 44. Be8 {[%clk 0:00:24]}  e5 {[%clk 0:00:14]} 45. Rh6 {[%clk 0:00:21]}  exf4 {[%clk 0:00:14]} 46. Rxg6+ {[%clk 0:00:22]}  Ke5 {[%clk 0:00:15]} 47. Bc6 {[%clk 0:00:22]}  Rg3+ {[%clk 0:00:13]} 48. Rxg3 {[%clk 0:00:22]}  fxg3 {[%clk 0:00:14]} 49. Kxg3 {[%clk 0:00:23]}  f4+ {[%clk 0:00:15]} 50. Kf3 {[%clk 0:00:21]}  Bd8 {[%clk 0:00:15]} 51. Be8 {[%clk 0:00:21]}  Bxh4 {[%clk 0:00:14]} 52. Bxh5 {[%clk 0:00:22]}  Bd8 {[%clk 0:00:15]} 53. Be8 {[%clk 0:00:22]}  Bb6 {[%clk 0:00:15]} 54. Bb5 {[%clk 0:00:22]}  Bc5 {[%clk 0:00:15]} 55. Bc4 {[%clk 0:00:22]}  Bb6 {[%clk 0:00:16]} 56. Bb5 {[%clk 0:00:22]} 1/2-1/2


[Site "https://www.chess.com"]